bitfinex/quotes_ETHUSD_20240701
["timestamp","ask_amount","ask_price","bid_price","bid_amount"]
[1719840959133,2.87604,3477.0,3475.5,3.80675736]
[1719840959334,0.05549833,3476.9,3475.8,2.87703]
[1719840959587,0.11299863,3476.9,3475.8,2.877]
[1719840960051,0.11299863,3476.9,3475.9,2.87689]
[1719840960256,0.11299863,3476.9,3476.0,2.93437438]
[1719840960257,0.05549833,3476.9,3476.0,2.93437438]
[1719840960470,0.05549833,3476.9,3476.1,2.87673]
[1719840960638,0.05549833,3476.9,3476.1,2.93425892]
[1719840960839,0.0575003,3476.8,3475.6,3.25783574]
[1719840961053,0.11278637,3476.8,3475.6,0.38067574]
[1719840961254,0.0575003,3476.7,3475.6,0.38067574]
[1719840961481,0.05525343,3476.7,3476.1,2.87675]
[1719840961777,0.0575003,3477.0,3476.1,2.9342789]
[1719840961981,0.05521579,3476.6,3476.1,2.9342789]
[1719840962194,0.60778033,3477.0,3476.1,2.9342789]
[1719840962395,0.05518065,3476.5,3475.6,3.25783574]
[1719840962555,3.48387033,3477.0,3475.7,2.87711]
[1719840962757,0.60530803,3476.9,3475.7,3.90795531]
[1719840963008,0.0575003,3476.8,3475.7,3.90795531]
[1719840963281,0.05532761,3476.7,3475.7,3.90795531]
[1719840963492,2.2754,3476.6,3475.2,10.1975]
[1719840963644,0.0575003,3476.5,3475.2,10.1975]
[1719840963845,0.11261786,3476.5,3475.4,2.87735]
[1719840964048,0.35526565,3476.4,3475.5,3.0]
[1719840964243,0.0575003,3476.3,3475.5,3.0]
[1719840964444,0.11254958,3476.3,3475.5,3.0]
[1719840964702,0.0575003,3476.2,3475.6,2.87717]
[1719840965000,0.0575003,3476.5,3475.7,2.87708]
[1719840965158,0.0575003,3476.5,3475.8,3.47044195]
[1719840965341,0.05504429,3476.4,3475.8,0.65099955]
[1719840965547,0.05504429,3476.4,3476.2,2.87665]
[1719840965745,2.3531,3477.1,3476.3,0.0575287]
[1719840965943,2.3531,3477.8,3476.6,2.87635]
[1719840966165,1.03156033,3477.7,3476.7,0.05751989]
[1719840966395,0.0575003,3477.7,3476.7,0.05751989]
[1719840967997,3.0575003,3477.7,3476.7,0.05751989]
[1719840968199,3.0575003,3477.7,3476.6,2.87635]
[1719840969069,3.0575003,3477.7,3476.2,2.87666]
[1719840969245,2.87578,3477.4,3476.1,2.87678]
[1719840969451,0.0575003,3477.3,3476.1,2.87678]
[1719840969763,2.3232,3477.1,3476.1,2.87678]
[1719840969975,0.0575003,3477.0,3476.2,2.87665]
[1719840970175,0.0575003,3477.0,3475.9,5.87692]
[1719840970482,0.23807003,3476.9,3475.9,5.87692]
[1719840970677,0.0575003,3476.8,3476.0,2.87686]
[1719840971083,0.0575003,3476.8,3476.0,2.93439092]
[1719840971285,0.0575003,3476.8,3476.2,2.8767]
[1719840971590,0.0575003,3476.8,3475.9,3.0]
[1719840971591,2.3232,3477.1,3476.6,2.87632]
[1719840971983,0.0575003,3477.4,3476.8,2.87615]
[1719840972157,0.0575003,3477.4,3476.8,3.451397]
[1719840972352,0.05506314,3477.3,3476.8,3.451397]
[1719840972590,0.05506314,3477.3,3476.9,2.87612]
[1719840973309,2.4833,3477.5,3476.9,2.87612]
[1719840973591,2.4833,3477.5,3476.8,3.50896663]
[1719840973774,2.4833,3477.5,3476.9,0.35089666]
[1719840973982,2.4833,3477.5,3477.0,2.87599]
[1719840973983,0.05526529,3477.4,3477.0,2.87599]
[1719840974279,2.4833,3477.5,3477.2,2.87585]
[1719840974583,0.0575003,3478.1,3477.2,2.87585]
[1719840974584,0.05521845,3477.3,3477.2,2.87585]
[1719840974785,0.0575003,3477.9,3477.2,0.59409575]
[1719840974994,2.3707,3478.0,3477.4,2.87569]
[1719840975148,0.05542517,3477.8,3477.4,2.87569]
[1719840975355,0.05545928,3477.9,3477.4,2.87569]
[1719840975654,0.05545065,3477.8,3477.2,3.46996575]
[1719840975861,2.3707,3478.0,3477.2,3.46996575]
[1719840975862,2.3707,3478.0,3477.2,3.52747596]
[1719840976070,0.05540088,3477.7,3477.2,2.93338021]
[1719840976281,0.0575003,3477.9,3477.2,2.87587]
[1719840976490,0.05540679,3477.6,3477.2,2.87587]
[1719840976691,0.0575003,3477.9,3477.3,2.87578]
[1719840976861,0.05534716,3477.5,3477.3,2.87578]
[1719840977185,0.0575003,3477.9,3477.2,2.87587]
[1719840977389,0.0575003,3477.9,3477.3,2.87578]
[1719840977704,0.05547497,3477.8,3477.3,0.575165]
[1719840977854,0.05547497,3477.8,3477.1,2.8759]
[1719840978056,0.05547497,3477.8,3477.2,2.87586]
[1719840978956,0.05547497,3477.8,3477.1,2.87595]
[1719840979156,0.05547497,3477.8,3477.3,2.87579]
[1719840979363,0.05547497,3477.8,3477.3,2.93330015]
[1719840979569,0.05547497,3477.8,3477.5,2.87557]
[1719840979812,2.3707,3478.0,3477.5,2.87557]
[1719840980169,0.0575003,3477.9,3477.4,0.29333002]
[1719840980502,0.11300545,3477.9,3477.3,2.87579]
[1719840981498,0.05550515,3477.9,3477.4,2.93320914]
[1719840981799,2.3707,3478.0,3477.6,2.87552]
[1719840982201,0.05550317,3477.9,3477.6,2.87552]
[1719840982403,0.05550317,3477.9,3477.7,2.87546]
[1719840982782,2.5245003,3478.4,3477.7,2.87546]
[1719840982965,0.05548177,3477.8,3477.7,2.87546]
[1719840983169,2.5245003,3478.4,3477.5,2.87556]
[1719840983700,0.0556523,3478.3,3477.5,2.87556]
[1719840983904,0.0575003,3478.2,3477.5,2.87556]
[1719840984090,0.1131185,3478.2,3477.5,2.87556]
[1719840984405,0.1131185,3478.2,3476.4,5.2999]
[1719840984406,0.67113035,3478.2,3477.1,2.87595]
[1719840984766,0.1131185,3478.2,3477.5,2.87557]
[1719840985170,0.1131185,3478.2,3477.7,2.8754]
[1719840985406,0.0556182,3478.2,3477.7,2.8754]
[1719840986275,0.0556182,3478.2,3477.5,2.87555]
[1719840986586,0.0556182,3478.2,3477.5,2.93305561]
[1719840986782,0.0556182,3478.2,3477.5,3.16885556]
[1719840987006,0.0556182,3478.2,3477.8,2.87537]
[1719840987205,0.0556182,3478.2,3478.1,2.87513]
[1719840987417,0.0556182,3478.2,3478.1,5.80775869]
[1719840987724,0.094,3478.6,3478.2,2.87503]
[1719840988196,0.094,3478.6,3478.2,3.450051]
[1719840989185,0.094,3478.6,3478.5,2.8748]
[1719840991629,0.094,3478.6,3478.5,8.6244]
[1719840991800,0.094,3478.6,3478.5,8.1816]
[1719840992339,0.094,3478.6,3478.5,2.8748]
[1719840992649,0.094,3478.6,3478.5,6.43956384]
[1719840992791,0.094,3478.6,3478.5,3.56476384]
[1719840993221,0.094,3478.6,3478.5,6.43956384]
[1719840993419,0.094,3478.6,3478.5,3.56476384]
[1719840993628,0.094,3478.6,3478.5,6.43956384]
[1719840993822,0.094,3478.6,3478.5,3.5072771]
[1719840994832,0.094,3478.6,3478.2,0.575021]
[1719840995130,0.05307392,3478.5,3478.1,2.87513]
[1719840995597,0.094,3478.6,3478.1,2.87513]
[1719840995798,0.094,3478.6,3477.9,2.87528]
[1719840995999,0.094,3478.6,3478.0,2.87521]
[1719840996601,0.094,3478.6,3477.8,5.87538]
[1719840996803,0.094,3478.6,3477.9,0.87509]
[1719840996996,0.05303088,3478.5,3477.8,2.87538]
[1719840997232,2.4221,3478.4,3477.4,7.32]
[1719840997433,0.0575003,3478.3,3476.7,2.432]
[1719840997734,0.05303733,3478.3,3477.3,0.115165]
[1719840997938,0.05303733,3478.3,3477.6,2.87554]
[1719840998151,0.05303733,3478.3,3477.7,0.05750216]
[1719840999137,0.05303733,3478.3,3477.8,2.87531]
[1719840999309,0.05303733,3478.3,3478.2,2.87505]
[1719840999506,0.094,3478.6,3478.0,2.87516]
[1719840999713,0.094,3478.6,3477.9,2.87526]
[1719841000007,0.05295858,3478.5,3477.9,2.87526]
[1719841000226,0.05295858,3478.5,3478.1,2.87512]
[1719841000432,0.05295858,3478.5,3478.0,0.34561322]
[1719841000726,0.05295858,3478.5,3478.0,3.22082322]
[1719841000889,0.094,3478.6,3478.0,3.22082322]
[1719841001251,0.094,3478.6,3478.1,2.93260419]
[1719841001591,0.05293306,3478.5,3478.2,0.61534274]
[1719841002004,0.05293306,3478.5,3477.9,2.87529]
[1719841002174,0.11043336,3478.5,3477.7,3.45626222]
[1719841003168,0.11043336,3478.5,3477.7,0.58087222]
[1719841003371,0.05293306,3478.5,3477.5,2.87562]
[1719841003553,0.05293306,3478.5,3477.4,2.87566]
[1719841003767,0.05293306,3478.5,3477.6,2.87553]
[1719841004057,0.05293306,3478.5,3477.7,2.87545]
[1719841004277,0.11043336,3478.5,3477.7,2.87545]
[1719841004686,0.11043336,3478.5,3477.8,2.87537]
[1719841005367,0.11043336,3478.5,3477.7,0.63260234]
[1719841005574,0.11043336,3478.5,3477.7,3.50805234]
[1719841006365,0.11043336,3478.5,3477.7,0.05750434]
[1719841006791,0.11043336,3478.5,3477.5,5.87561]
[1719841010000,2.4859,3478.4,3477.3,0.115165]
[1719841010215,0.0575003,3478.3,3477.3,0.115165]
[1719841010513,0.54712634,3478.2,3477.3,0.115165]
[1719841010805,2.4081,3478.0,3476.8,10.19617]
[1719841010975,0.0575003,3477.9,3476.9,2.87607]
[1719841011176,0.0575003,3477.9,3477.1,2.87591]
[1719841011177,0.05262086,3477.9,3477.1,2.87591]
[1719841011382,0.05262086,3477.9,3477.2,0.05751135]
[1719841011764,0.0575003,3477.8,3477.2,0.05751135]
[1719841012073,0.11012458,3477.8,3476.9,2.87604]
[1719841012271,0.11012458,3477.8,3477.0,0.530804]
[1719841012773,0.05262428,3477.8,3477.0,0.530804]
[1719841012974,2.4081,3478.0,3477.0,0.530804]
[1719841013212,0.05241105,3477.7,3477.0,0.530804]
[1719841013389,0.05267072,3477.9,3477.0,0.530804]
[1719841013590,2.4081,3478.0,3477.0,0.530804]
[1719841013795,0.05263661,3477.8,3477.0,0.530804]
[1719841014116,0.0575003,3477.9,3477.1,3.56173003]
[1719841014117,0.05260249,3477.7,3477.1,3.56173003]
[1719841014399,0.0575003,3477.9,3477.1,0.68580003]
[1719841014692,0.05225479,3477.8,3477.1,0.68580003]
[1719841015296,0.05225479,3477.8,3476.9,5.75209]
[1719841015477,0.05225479,3477.8,3476.9,2.87604]
[1719841016501,0.30032502,3477.7,3476.9,2.87604]
[1719841016794,0.35277042,3477.7,3476.9,2.87604]
[1719841018187,0.35277042,3477.7,3476.6,3.0]
[1719841018188,0.35277042,3477.7,3476.6,5.87635]
[1719841018383,0.0575003,3477.6,3476.6,6.463985]
[1719841018771,0.0575003,3477.6,3476.6,9.340285]
[1719841018973,0.05240114,3477.5,3476.8,2.87613]
[1719841019213,0.05240114,3477.5,3476.9,3.5799606]
[1719841019700,0.05234858,3477.4,3476.9,3.5799606]
[1719841019889,0.30032502,3477.7,3476.9,3.5799606]
[1719841020094,0.05230874,3477.3,3477.1,2.87588]
[1719841020266,0.30032502,3477.7,3477.4,2.87564]
[1719841020597,0.05242297,3477.6,3477.5,0.63840538]
[1719841020802,0.05242297,3477.6,3477.5,3.51402538]
[1719841020968,0.30032502,3477.7,3477.6,2.87554]
[1719841021165,7.33,3478.3,3477.6,2.87554]
[1719841021366,2.3366,3478.5,3477.7,0.05749989]
[1719841021669,2.3366,3478.5,3477.8,0.05749651]
[1719841022018,2.3366,3478.5,3478.0,2.87521]
[1719841022313,2.3366,3478.5,3478.1,2.93261653]
[1719841022465,2.3366,3478.5,3478.1,0.05749653]
[1719841023182,2.3366,3478.5,3477.9,2.93278656]
[1719841023502,2.3366,3478.5,3478.0,0.35273937]
[1719841023684,2.3366,3478.5,3478.1,0.05749656]
[1719841023882,0.094,3478.6,3478.0,3.22786937]
[1719841024082,0.094,3478.6,3478.1,2.87507]
[1719841024261,0.30040664,3478.4,3478.1,2.87507]
[1719841024472,0.30040664,3478.4,3478.2,0.61030794]
[1719841025377,0.30040664,3478.4,3478.0,0.35273937]
[1719841025771,0.30040664,3478.4,3477.7,3.47005719]
[1719841025772,0.05279492,3478.3,3477.7,0.59460719]
[1719841025978,0.30040664,3478.4,3477.4,2.8757]
[1719841026178,0.05282911,3478.2,3477.5,3.0]
[1719841026397,2.453,3478.1,3477.5,3.0]
[1719841026608,2.453,3478.1,3477.6,0.05750367]
[1719841026900,2.453,3478.1,3477.5,5.87561]
[1719841026901,2.453,3478.1,3477.5,3.0]
[1719841027098,0.05249409,3478.0,3477.5,4.10054076]
[1719841028765,0.05249409,3478.0,3477.6,0.05750365]
[1719841028965,2.453,3478.1,3477.5,4.10054076]
[1719841029209,0.0524209,3477.9,3477.5,1.10054076]
[1719841029407,0.052672,3478.0,3477.6,2.93304367]
[1719841029569,0.30042136,3478.3,3477.6,1.34842711]
[1719841029770,0.30042136,3478.3,3478.0,2.87516]
[1719841029974,0.30042136,3478.3,3478.1,0.05749598]
[1719841030195,0.05274012,3478.2,3477.8,2.87537]
[1719841030588,0.30042136,3478.3,3477.7,2.87541]
[1719841031069,0.30042136,3478.3,3477.8,2.87536]
[1719841031265,0.30042136,3478.3,3477.9,0.63257481]
[1719841031583,0.05252405,3478.2,3477.9,3.50786481]
[1719841032988,0.05252405,3478.2,3478.1,2.87513]
[1719841033249,0.094,3478.6,3478.1,2.87513]
[1719841034410,0.094,3478.6,3478.0,0.05749582]
[1719841034411,0.05267533,3478.5,3477.9,3.450317]
[1719841034616,0.05267533,3478.5,3478.1,0.05749543]
[1719841035205,0.05267533,3478.5,3477.7,2.87542]
[1719841036314,0.05267533,3478.5,3477.5,3.97614076]
[1719841036521,2.2591,3478.3,3477.6,3.0]
[1719841037023,0.05274059,3478.2,3477.6,3.0]
[1719841037223,0.05274059,3478.2,3477.6,3.98518908]
[1719841037395,0.11024089,3478.2,3477.7,3.0]
[1719841037592,0.11024089,3478.2,3477.6,0.98518908]
[1719841037995,0.11024089,3478.2,3477.3,2.87575]
[1719841038249,0.11024089,3478.2,3477.1,2.87593]
[1719841038475,0.11024089,3478.2,3477.1,2.87588]
[1719841038678,0.0575003,3478.2,3477.2,2.87582]
[1719841038957,0.05270649,3478.1,3477.2,2.87582]
[1719841040449,0.05270649,3478.1,3477.0,2.87604]
[1719841040624,2.4365,3478.0,3477.1,3.0]
[1719841040821,0.0575003,3477.9,3477.1,3.0]
[1719841041051,0.10983342,3477.9,3477.0,3.0]
[1719841041445,0.10983342,3477.9,3477.0,5.93354355]
[1719841041665,0.05233312,3477.9,3477.3,2.87578]
[1719841041841,0.05233312,3477.9,3477.4,0.34508546]
[1719841042170,0.05254162,3477.8,3477.4,0.34508546]
[1719841042366,2.4365,3478.0,3477.4,0.34508546]
[1719841043156,0.05258852,3477.9,3477.4,0.05750746]
[1719841044036,0.05258852,3477.9,3477.2,2.87586]
[1719841045356,0.05258852,3477.9,3476.7,5.30825]
[1719841045357,0.11008882,3477.9,3476.7,2.87626]
[1719841045559,0.11008882,3477.9,3476.8,2.8762]
[1719841045560,0.0575003,3477.9,3476.8,2.8762]
[1719841045748,0.3072064,3477.8,3476.8,2.8762]
[1719841046001,0.0575003,3477.7,3476.8,2.8762]
[1719841046166,0.0575003,3477.7,3476.3,2.87656]
[1719841046510,5.29601732,3477.6,3476.3,2.87656]
[1719841046795,0.90585795,3477.5,3476.3,2.87656]
[1719841047006,0.95807709,3477.5,3476.3,2.87656]
[1719841047782,0.95807709,3477.5,3476.4,3.0]
[1719841047952,5.35096,3477.3,3475.9,7.32]
[1719841048158,0.0575003,3477.2,3476.0,2.87685]
[1719841048356,2.4751,3477.1,3475.8,2.87701]
[1719841048655,0.1095342,3477.0,3475.8,2.87701]
[1719841049162,0.1095342,3477.0,3475.6,2.87718]
[1719841049475,0.25846342,3476.9,3475.8,2.87702]
[1719841049793,0.10951808,3476.8,3475.9,2.93445173]
[1719841050003,0.05201778,3476.8,3476.0,2.87685]
[1719841050291,2.4751,3477.1,3475.8,2.432]
[1719841050292,2.4751,3477.1,3476.4,2.87651]
[1719841050452,0.05197489,3476.7,3476.5,0.05752341]
[1719841050660,2.4751,3477.1,3476.2,2.93418363]
[1719841050987,0.05200871,3477.0,3476.3,0.05752526]
[1719841051563,0.05200871,3477.0,3476.3,2.93413526]
[1719841052090,0.05200871,3477.0,3476.4,0.0575236]
[1719841053188,0.05200871,3477.0,3476.2,0.05752359]
[1719841054272,0.05200871,3477.0,3476.1,2.87674]
[1719841054608,0.25271087,3476.9,3475.9,2.87694]
[1719841054895,0.0575003,3476.8,3475.9,2.87694]
[1719841055071,0.10939356,3476.8,3475.9,2.87694]
[1719841056298,0.10939356,3476.8,3475.7,2.87705]
[1719841056498,2.3176003,3476.7,3475.6,7.32]
[1719841056801,0.05182702,3476.6,3475.7,3.0]
[1719841057184,0.05182702,3476.6,3475.6,1.562921]
[1719841057185,0.05182702,3476.6,3475.6,4.562921]
[1719841057571,0.05182702,3476.6,3475.6,7.440111]
[1719841058102,0.10932732,3476.6,3475.2,2.87747]
[1719841058267,0.10932732,3476.6,3474.7,2.87791]
[1719841058268,2.3078,3476.0,3474.7,2.87791]
[1719841058464,2.3078,3476.0,3474.9,2.87777]
[1719841058465,0.0575003,3475.9,3474.9,2.87777]
[1719841058691,0.0575003,3475.9,3475.0,0.63311296]
[1719841058692,0.10903967,3475.9,3475.0,0.63311296]
[1719841058888,0.10903967,3475.9,3475.0,0.05754496]
[1719841059203,0.10903967,3475.9,3475.1,2.8776]
[1719841061113,0.10903967,3475.9,3475.2,0.05754496]
[1719841061114,0.05153937,3475.9,3475.2,0.05754496]
[1719841061302,0.05153937,3475.9,3475.4,5.30932]
[1719841061467,2.3846,3476.6,3475.5,0.0575347]
[1719841061807,2.3846,3476.6,3476.1,2.87678]
[1719841061808,0.0517797,3476.5,3476.1,2.87678]
[1719841062129,2.3846,3476.6,3475.9,2.93441922]
[1719841062294,2.3846,3476.6,3475.9,0.05752922]
[1719841062685,0.0517797,3476.5,3475.9,0.05752922]
[1719841064507,0.0517797,3476.5,3475.9,2.93446922]
[1719841064720,0.0517797,3476.5,3476.0,0.82434792]
[1719841064887,0.0517797,3476.5,3475.8,5.30901]
[1719841065082,0.10928,3476.5,3475.6,3.12615347]
[1719841065285,0.10928,3476.5,3475.7,0.05753365]
[1719841066521,2.44,3476.4,3475.0,2.87766]
[1719841066727,2.25,3476.1,3475.1,2.87761]
[1719841066950,0.0575003,3476.0,3475.1,2.87761]
[1719841067229,0.10887667,3476.0,3474.8,2.87783]
[1719841067398,0.10887667,3476.0,3474.9,3.0]
[1719841067603,0.10887667,3476.0,3475.0,2.87762]
[1719841067942,0.10887667,3476.0,3475.1,0.875545]
[1719841068482,0.10887667,3476.0,3475.0,2.87762]
[1719841069527,0.10887667,3476.0,3474.9,3.0]
[1719841069742,2.32,3475.9,3474.9,3.0]
[1719841069949,0.0575003,3475.8,3474.9,3.0]
[1719841070117,0.10888887,3475.8,3474.9,3.0]
[1719841070463,0.0575003,3475.7,3474.8,3.0]
[1719841070749,0.0575003,3475.7,3474.8,4.118804]
[1719841070963,0.05133717,3475.6,3474.8,4.118804]
[1719841071459,0.05133717,3475.6,3474.9,2.93527828]
[1719841071604,0.05133717,3475.6,3474.8,6.996664]
[1719841071808,2.4513,3475.5,3474.8,1.118804]
[1719841072040,0.05126885,3475.4,3474.6,5.31001]
[1719841072251,0.10876915,3475.4,3474.4,2.87816]
[1719841072762,0.10876915,3475.4,3474.6,2.87795]
[1719841073557,0.10876915,3475.4,3474.7,2.87794]
[1719841075117,0.05126885,3475.4,3474.8,2.93539354]
[1719841075330,0.05126885,3475.4,3474.9,0.58133335]
[1719841076043,0.05126885,3475.4,3474.8,2.93540354]
[1719841076826,0.05126885,3475.4,3474.9,2.87777]
[1719841077046,2.4513,3475.5,3474.8,0.05755354]
[1719841077465,0.05117781,3475.4,3474.8,2.93541354]
[1719841078334,0.05117781,3475.4,3474.9,2.87777]
[1719841078650,0.05117781,3475.4,3475.0,2.87763]
[1719841078851,2.4513,3475.5,3475.0,2.87763]
[1719841078852,2.4513,3475.5,3475.0,2.93522073]
[1719841079033,2.4513,3475.5,3475.0,2.87767]
[1719841079233,0.05118174,3475.4,3475.0,2.87767]
[1719841079655,0.05118174,3475.4,3474.9,0.05754479]
[1719841079931,0.05118174,3475.4,3474.9,2.93530479]
[1719841080131,0.10868204,3475.4,3474.8,2.87784]
[1719841080474,0.05118174,3475.4,3474.8,2.87784]
[1719841080976,0.10868204,3475.4,3474.8,2.87784]
[1719841081342,0.10868204,3475.4,3474.7,2.432]
[1719841081567,0.10868204,3475.4,3474.7,5.30994]
[1719841082397,0.10868204,3475.4,3474.6,2.87801]
[1719841082737,0.10868204,3475.4,3474.4,5.75628]
[1719841083078,0.10868204,3475.4,3474.5,2.87809]
[1719841083250,0.10868204,3475.4,3474.4,5.75626]
[1719841083451,0.10868204,3475.4,3474.5,2.87809]
[1719841084648,0.65239424,3475.4,3474.5,2.85009]
[1719841085687,2.3171,3475.3,3474.3,2.8782]
[1719841085840,0.0575003,3475.2,3474.3,2.8782]
[1719841086035,0.05117607,3475.1,3474.3,2.8782]
[1719841086231,0.0575003,3475.2,3474.3,2.8782]
[1719841086466,0.05117607,3475.1,3474.3,2.8782]
[1719841087179,0.05117607,3475.1,3474.1,8.31043]
[1719841087350,2.2841,3474.9,3474.1,8.31043]
[1719841087554,0.0575003,3474.8,3474.1,8.31043]
[1719841087750,0.10842248,3474.8,3474.1,8.31043]
[1719841087969,0.10842248,3474.8,3474.1,8.31037]
[1719841088152,0.05092218,3474.8,3474.2,2.93585993]
[1719841088347,2.2841,3474.9,3474.2,2.93585993]
[1719841088551,0.0508508,3474.7,3474.2,2.93585993]
[1719841088750,2.2841,3474.9,3474.2,2.93585993]
[1719841088956,0.0575003,3474.8,3474.2,2.8783]
[1719841089275,0.05087309,3474.8,3474.2,2.93585994]
[1719841090239,0.10837339,3474.8,3474.2,2.8783]
[1719841090443,0.10837339,3474.8,3474.1,5.432]
[1719841090745,0.10837339,3474.8,3474.1,5.31043]
[1719841090939,0.05087309,3474.8,3474.2,2.93590997]
[1719841091177,2.4148,3475.4,3474.7,2.87792]
[1719841091351,2.4587,3475.8,3474.9,2.432]
[1719841091552,2.4587,3475.8,3475.1,2.87756]
[1719841091861,2.4587,3475.8,3475.0,3.12663507]
[1719841091862,0.0575003,3475.7,3475.0,3.12663507]
[1719841092267,2.4587,3475.8,3475.0,3.12663507]
[1719841092441,2.4587,3475.8,3475.2,2.87748]
[1719841092648,2.4587,3475.8,3475.0,3.18416323]
[1719841092846,2.6027,3475.8,3475.4,2.87736]
[1719841093064,2.6027,3475.8,3475.3,0.05754255]
[1719841093275,0.144,3475.8,3475.7,2.87711]
[1719841095281,0.144,3475.8,3475.7,5.75422]
[1719841096987,0.144,3475.8,3475.7,8.75422]
[1719841097160,0.144,3475.8,3475.7,10.160558]
[1719841099180,0.144,3475.8,3475.7,13.037668]
[1719841100692,0.0575003,3477.3,3476.8,2.87617]
[1719841100693,2.4039,3477.0,3476.8,2.87617]
[1719841100990,2.4039,3477.0,3476.9,2.87612]
[1719841101190,2.4039,3477.5,3476.9,0.81844]
[1719841101491,2.4039,3477.5,3477.0,2.87603]
[1719841102280,2.4979,3477.5,3477.0,2.87603]
[1719841102591,2.4979,3477.5,3477.1,2.87595]
[1719841102793,2.4979,3477.5,3477.2,2.87586]
[1719841103092,2.4979,3477.5,3477.2,2.87587]
[1719841103654,0.094,3477.5,3477.4,2.87571]
[1719841103857,0.094,3477.5,3477.4,6.38982949]
[1719841104171,0.094,3477.5,3477.4,6.33232134]
[1719841105273,0.094,3477.5,3477.4,3.45661134]
[1719841105473,0.094,3477.5,3477.4,2.87571]
[1719841105982,0.094,3477.5,3477.4,5.75142]
[1719841107809,0.094,3477.5,3477.4,2.87571]
[1719841108106,0.094,3477.5,3477.4,5.80892679]
[1719841108605,0.094,3477.5,3477.4,2.93321679]
[1719841108985,0.094,3477.5,3477.4,5.80892679]
[1719841109189,0.094,3477.5,3477.4,6.38981947]
[1719841110941,0.094,3477.5,3477.4,3.45660268]
[1719841112307,0.094,3477.5,3477.4,6.38981943]
[1719841113409,0.094,3477.5,3477.4,3.51410943]
[1719841113608,0.094,3477.5,3477.4,3.45660268]
[1719841113810,0.094,3477.5,3477.4,6.33231268]
[1719841116287,0.094,3477.5,3477.4,3.45660268]
[1719841116483,0.094,3477.5,3477.4,6.33231268]
[1719841116712,0.094,3477.5,3477.4,3.45660268]
[1719841116911,0.094,3477.5,3477.4,2.87571]
[1719841117327,0.094,3477.5,3477.4,5.75142]
[1719841118010,0.094,3477.5,3477.4,2.87571]
[1719841119590,0.094,3477.5,3477.1,2.87592]
[1719841119823,0.094,3477.5,3477.3,2.87573]
[1719841120732,0.094,3477.5,3477.3,3.694095]
[1719841122236,0.094,3477.5,3477.4,2.87571]
[1719841122536,0.094,3477.5,3477.4,5.80893105]
[1719841122742,0.094,3477.5,3477.4,14.10033]
[1719841123025,0.094,3477.5,3477.4,17.10033]
[1719841123231,0.094,3477.5,3477.4,18.8921995]
[1719841125971,0.094,3477.5,3477.4,12.9752895]
[1719841127427,2.2969,3478.6,3477.4,7.2238695]
[1719841127630,0.04290533,3478.5,3478.2,2.87498]
[1719841127832,13.23675,3479.8,3478.3,0.05749432]
[1719841127833,2.3985,3479.1,3478.3,0.05749432]
[1719841128030,2.3985,3479.1,3478.6,2.87463]
[1719841128232,2.3985,3479.1,3478.7,2.87457]
[1719841128233,0.04302065,3479.0,3478.7,2.87457]
[1719841128478,2.3985,3479.1,3478.7,2.87457]
[1719841134052,2.3985,3479.1,3478.5,0.05748869]
[1719841134053,2.3985,3479.1,3478.5,2.93222869]
[1719841134422,2.3985,3479.1,3478.6,2.87469]
[1719841135114,2.3985,3479.1,3478.5,2.8748]
[1719841135523,2.3985,3479.1,3478.4,3.12378943]
[1719841135524,0.04313474,3479.0,3478.4,0.24894943]
[1719841135722,0.31733005,3479.0,3477.9,2.87522]
[1719841135921,2.2897,3478.9,3478.0,2.87521]
[1719841136382,0.10056685,3478.8,3478.0,2.87521]
[1719841136785,0.10056685,3478.8,3478.1,2.87513]
[1719841137066,0.10056685,3478.8,3478.2,2.87504]
[1719841137368,0.10056685,3478.8,3478.3,2.87496]
[1719841137533,0.10056685,3478.8,3478.1,2.87513]
[1719841137740,0.10056685,3478.8,3478.1,3.750099]
[1719841138367,0.04306655,3478.8,3478.3,2.87492]
[1719841138756,2.2897,3478.9,3478.3,2.87492]
[1719841138993,0.0575003,3478.8,3478.3,2.87492]
[1719841139141,0.10054133,3478.8,3478.3,2.87492]
[1719841139333,0.04304103,3478.8,3478.3,2.87492]
[1719841139640,2.2897,3478.9,3478.3,3.5374249]
[1719841139839,0.04302827,3478.8,3478.3,3.5374249]
[1719841140034,0.0575003,3478.8,3478.3,3.5374249]
[1719841140861,2.2897,3478.9,3478.3,3.5374249]
[1719841141096,0.04306263,3478.8,3478.3,3.5374249]
[1719841141299,0.10056293,3478.8,3478.1,2.87509]
[1719841141496,0.10056293,3478.8,3478.2,2.87504]
[1719841142017,0.10056293,3478.8,3478.0,2.87514]
[1719841142324,0.10056293,3478.8,3478.1,2.87513]
[1719841142666,0.10056293,3478.8,3477.9,2.87526]
[1719841142887,2.3109003,3478.7,3477.8,5.87535]
[1719841143176,0.04298854,3478.6,3477.8,2.87535]
[1719841143373,0.0575003,3478.5,3477.7,2.93294291]
[1719841143919,0.04292033,3478.4,3477.7,2.93294291]
[1719841145089,0.04292033,3478.4,3477.4,1.7918695]
[1719841145288,0.04292033,3478.4,3478.3,2.87496]
[1719841145487,8.627581,3478.9,3478.3,2.87496]
[1719841145733,0.04305674,3478.8,3478.3,2.87496]
[1719841145891,0.04305674,3478.8,3478.4,2.87488]
[1719841146296,0.04305674,3478.8,3478.5,2.87478]
[1719841146631,0.04305674,3478.8,3478.5,3.4554952]
[1719841146990,0.04305674,3478.8,3478.5,0.5807152]
[1719841148208,0.04305674,3478.8,3478.4,2.9323707]
[1719841148590,2.4031,3478.7,3477.7,3.0]
[1719841148829,0.0575003,3478.6,3477.8,3.0]
[1719841149039,0.09902988,3478.6,3477.8,3.0]
[1719841149549,2.44,3478.5,3477.6,7.32]
[1719841149697,0.0575003,3478.4,3477.5,2.87562]
[1719841149896,0.04144003,3478.3,3477.6,3.0]
[1719841150110,0.04144003,3478.3,3477.6,5.87554]
[1719841150329,0.04144003,3478.3,3477.6,3.0]
[1719841150548,0.04144003,3478.3,3477.5,3.0]
[1719841150835,0.04144003,3478.3,3477.5,3.90363007]
[1719841151748,2.3085,3478.1,3477.5,3.0]
[1719841151892,0.0575003,3478.0,3477.2,3.0]